bitfinex-derivatives/quotes_BTCF0:USTF0_20250718
["timestamp","ask_amount","ask_price","bid_price","bid_amount"]
[1752825519048,0.99286,119520.0,119510.0,0.4413262]
[1752825519243,0.7216,119520.0,119510.0,0.81919457]
[1752825519446,0.3608,119520.0,119510.0,1.20524228]
[1752825519650,0.92826,119540.0,119530.0,0.4168282]
[1752825519853,0.89883262,119540.0,119530.0,1.42692657]
[1752825520148,0.37830262,119540.0,119530.0,1.42692657]
[1752825520552,0.37830262,119540.0,119530.0,1.27692657]
[1752825521050,0.82149682,119540.0,119530.0,0.23211]
[1752825521253,0.82149682,119540.0,119530.0,0.18461]
[1752825521552,1.32403037,119540.0,119530.0,0.60872]
[1752825521748,1.34257427,119540.0,119530.0,0.001]
[1752825521950,1.34257427,119540.0,119520.0,1e-08]
[1752825521951,0.4432082,119530.0,119520.0,1e-08]
[1752825522254,1.43499791,119530.0,119520.0,1e-08]
[1752825522450,0.4432222,119520.0,119510.0,0.61072]
[1752825522747,1.18189057,119520.0,119510.0,0.003]
[1752825523952,1.80730239,119520.0,119510.0,0.007]
[1752825524254,1.95072085,119520.0,119510.0,0.007]
[1752825525049,1.57285248,119520.0,119510.0,0.004]
[1752825525551,2.01603803,119520.0,119510.0,0.004]
[1752825525950,0.4432361,119510.0,119500.0,0.005]
[1752825526151,0.83007563,119510.0,119500.0,0.005]
[1752825526550,1.43775563,119510.0,119500.0,0.04072]
[1752825526751,1.43775563,119510.0,119500.0,0.2079601]
[1752825527355,0.83007573,119510.0,119500.0,0.2159601]
[1752825527550,0.83007573,119510.0,119500.0,0.3110801]
[1752825527748,0.83007573,119510.0,119500.0,0.2159601]
[1752825531258,0.83007573,119510.0,119500.0,0.4113201]
[1752825531457,0.26887182,119510.0,119500.0,0.89950565]
[1752825531655,0.62967182,119510.0,119500.0,0.89950565]
[1752825532155,0.82172812,119510.0,119500.0,0.65636]
[1752825532756,0.82172812,119510.0,119500.0,1.0228002]
[1752825532953,0.82172812,119510.0,119500.0,0.14832]
[1752825533156,0.82172812,119510.0,119500.0,0.04872]
[1752825533357,0.94763914,119510.0,119500.0,0.6206]
[1752825534562,0.94763914,119510.0,119500.0,0.62056]
[1752825534762,0.94763914,119510.0,119500.0,0.013]
[1752825534958,1.39082469,119510.0,119500.0,0.013]
[1752825535157,0.3677602,119500.0,119490.0,0.00209]
[1752825535366,1.37048757,119500.0,119490.0,0.00209]
[1752825535658,0.2739742,119490.0,119480.0,0.64362]
[1752825535865,0.80719059,119490.0,119480.0,0.8108882]
[1752825536064,0.95103902,119490.0,119480.0,0.84282]
[1752825536265,0.93347263,119490.0,119480.0,1.0100482]
[1752825536861,0.93347263,119490.0,119480.0,0.4025282]
[1752825537062,0.95103636,119490.0,119480.0,1.0100482]
[1752825537260,0.95103636,119490.0,119480.0,0.8108482]
[1752825537460,0.95103636,119490.0,119480.0,0.2033282]
[1752825537461,0.93347263,119490.0,119480.0,0.2033282]
[1752825537656,0.9510332,119490.0,119480.0,0.1971782]
[1752825537862,0.9510332,119490.0,119480.0,0.8046982]
[1752825538557,1.01957843,119490.0,119480.0,0.8046982]
[1752825538967,1.00127638,119490.0,119480.0,0.1971782]
[1752825539164,1.00127638,119490.0,119480.0,0.8046982]
[1752825539865,1.00127638,119490.0,119480.0,0.8168482]
[1752825540266,1.00127638,119490.0,119480.0,0.2123282]
[1752825540566,0.91832115,119490.0,119480.0,1.50723375]
[1752825540767,0.93273115,119490.0,119480.0,0.65258]
[1752825540966,0.93273115,119490.0,119480.0,0.04506]
[1752825541163,0.93273115,119490.0,119480.0,0.64043]
[1752825541466,0.93273115,119490.0,119480.0,0.8198083]
[1752825541766,0.93273115,119490.0,119480.0,1.0190083]
[1752825541967,0.93273115,119490.0,119480.0,0.24426]
[1752825542167,0.93273115,119490.0,119480.0,1.0190083]
[1752825542362,0.93273115,119490.0,119480.0,0.14466]
[1752825542666,0.93373115,119490.0,119480.0,0.3720483]
[1752825543068,1.00216782,119490.0,119480.0,0.3720483]
[1752825543569,1.00216782,119490.0,119480.0,0.2724483]
[1752825543767,1.00216782,119490.0,119480.0,0.10518]
[1752825543965,1.00216782,119490.0,119480.0,0.2724483]
[1752825544361,1.00216782,119490.0,119480.0,0.001]
[1752825544560,1.44535337,119490.0,119480.0,0.001]
[1752825544967,1.38053461,119490.0,119480.0,0.001]
[1752825546366,1.00216782,119490.0,119480.0,0.001]
[1752825546567,1.38053461,119490.0,119480.0,0.001]
[1752825547271,0.4278382,119480.0,119470.0,0.00209]
[1752825547569,0.9321074,119480.0,119470.0,0.00209]
[1752825547872,0.4278522,119470.0,119460.0,0.71158]
[1752825548166,1.18457956,119470.0,119460.0,0.6435]
[1752825548770,0.80621277,119470.0,119460.0,0.6435]
[1752825549069,0.80621277,119470.0,119460.0,0.64559]
[1752825549265,0.80621277,119470.0,119460.0,0.03815]
[1752825549470,1.18457956,119470.0,119460.0,0.03915]
[1752825549772,1.31078579,119470.0,119460.0,0.03915]
[1752825550971,1.31078579,119470.0,119460.0,0.04115]
[1752825551171,0.932419,119470.0,119460.0,0.04115]
[1752825551366,1.31078579,119470.0,119460.0,0.00509]
[1752825551567,0.94069614,119470.0,119460.0,0.029]
[1752825551776,1.31875064,119470.0,119460.0,0.029]
[1752825553574,1.31875064,119470.0,119460.0,0.028]
[1752825553772,0.99761844,119470.0,119430.0,0.02391]
[1752825553970,1.52786109,119440.0,119430.0,0.2033983]
[1752825554170,0.6251871,119440.0,119430.0,0.82596509]
[1752825554369,0.7925111,119440.0,119430.0,0.4475983]
[1752825554569,0.4566771,119440.0,119430.0,0.82596509]
[1752825554770,0.59613,119450.0,119440.0,0.279074]
[1752825554972,0.76344,119450.0,119440.0,1.43719079]
[1752825555168,0.77527,119450.0,119440.0,1.43719079]
[1752825555376,0.60796,119450.0,119440.0,1.43719079]
[1752825555570,0.60796,119450.0,119440.0,1.058824]
[1752825555870,0.78066609,119450.0,119440.0,1.43719079]
[1752825556570,0.4026538,119440.0,119430.0,0.10383139]
[1752825556773,0.8986938,119440.0,119430.0,0.00423139]
[1752825556970,1.79869965,119440.0,119430.0,0.00014139]
[1752825557271,0.2740578,119430.0,119420.0,0.00815818]
[1752825557473,0.79251769,119430.0,119420.0,0.28841818]
[1752825557676,0.88952018,119430.0,119420.0,0.83413677]
[1752825557875,0.7634678,119430.0,119420.0,0.45576998]
[1752825558077,0.78066592,119430.0,119420.0,1.44521677]
[1752825558375,0.79249592,119430.0,119420.0,1.06684998]
[1752825559076,0.60796,119430.0,119420.0,1.06684998]
[1752825559274,0.59613,119430.0,119420.0,1.06684998]
[1752825559977,0.775248,119430.0,119420.0,1.06684998]
[1752825560178,0.775248,119430.0,119420.0,1.06784998]
[1752825560374,0.84263479,119430.0,119420.0,1.06784998]
[1752825560574,0.84263479,119430.0,119420.0,0.45676998]
[1752825560775,0.84263479,119430.0,119420.0,1.06820998]
[1752825561279,1.22100158,119430.0,119420.0,1.06820998]
[1752825561469,0.84263479,119430.0,119420.0,1.06820998]
[1752825562177,0.84263479,119430.0,119420.0,1.44657677]
[1752825562476,0.84263479,119430.0,119420.0,1.06820998]
[1752825563778,0.84263479,119430.0,119420.0,1.06740998]
[1752825564374,0.3608,119430.0,119420.0,1.44577677]
[1752825564579,0.53516,119450.0,119440.0,0.442914]
[1752825564779,0.3608,119450.0,119440.0,1.43120079]
[1752825565073,0.52811,119450.0,119440.0,1.43120079]
[1752825565580,0.8910664,119460.0,119450.0,0.16731]
[1752825565779,0.8910664,119460.0,119450.0,0.4429]
[1752825565780,0.9028464,119460.0,119450.0,0.4429]
[1752825565979,1.00457197,119460.0,119450.0,0.4429]
[1752825566181,0.70125288,119460.0,119450.0,0.82126679]
[1752825566380,0.79873288,119460.0,119450.0,1.05278]
[1752825566580,0.81590383,119460.0,119450.0,1.05278]
[1752825567079,0.50435783,119460.0,119450.0,1.43114679]
[1752825567377,0.3608,119460.0,119450.0,1.05278]
[1752825567576,0.54527253,119460.0,119450.0,1.43270679]
[1752825567979,0.42474653,119460.0,119450.0,1.05434]
[1752825568180,0.574866,119460.0,119450.0,1.05434]
[1752825568579,0.3658,119460.0,119450.0,1.05434]
[1752825568981,0.3658,119460.0,119450.0,1.43270679]
[1752825569180,0.3658,119460.0,119450.0,1.05434]
[1752825569480,0.3658,119460.0,119450.0,1.43270679]
[1752825569784,0.3658,119460.0,119450.0,1.43258679]
[1752825569785,0.005,119460.0,119450.0,1.43258679]
[1752825569979,0.42631583,119480.0,119470.0,0.442872]
[1752825570184,0.20316658,119480.0,119470.0,1.43243879]
[1752825570684,0.18601383,119480.0,119470.0,1.43243879]
[1752825570878,0.69106383,119480.0,119470.0,1.054072]
[1752825571280,0.69406383,119480.0,119470.0,1.054072]
[1752825571481,0.69506383,119480.0,119470.0,1.053992]
[1752825571684,0.78829383,119480.0,119470.0,1.054032]
[1752825571982,0.80007383,119480.0,119470.0,1.054032]
[1752825572184,0.81718776,119480.0,119470.0,1.053912]
[1752825572389,1.19555455,119480.0,119470.0,1.053912]
[1752825572783,1.19555455,119480.0,119470.0,0.442872]
[1752825573085,0.81718776,119480.0,119470.0,1.053632]
[1752825573493,0.81718776,119480.0,119470.0,0.442872]
[1752825573785,0.81718776,119480.0,119470.0,1.053592]
[1752825573987,0.81718776,119480.0,119470.0,0.27559]
[1752825574286,1.27402989,119480.0,119470.0,0.83778]
[1752825574487,1.40037031,119480.0,119470.0,0.02403]
[1752825574786,0.429952,119470.0,119460.0,0.13233]
[1752825574984,1.38129806,119470.0,119460.0,0.00209]
[1752825575185,0.4299661,119460.0,119450.0,0.02403]
[1752825575381,0.2626098,119450.0,119430.0,0.09666]
[1752825575580,1.66528423,119440.0,119430.0,0.27559]
[1752825575781,1.66528423,119440.0,119430.0,0.4429281]
[1752825575987,1.67869423,119440.0,119430.0,0.4429281]
[1752825576183,1.2352621,119440.0,119430.0,0.3944781]
[1752825576386,1.36062048,119440.0,119430.0,0.22714]
[1752825576587,1.36062048,119440.0,119430.0,0.13048]
[1752825576792,1.36062048,119440.0,119430.0,0.8136478]
[1752825577096,1.36062048,119440.0,119430.0,0.8186478]
[1752825577295,1.36062048,119440.0,119430.0,0.8196478]
[1752825577496,1.36062048,119440.0,119430.0,0.2090078]
[1752825577699,1.36062048,119440.0,119430.0,0.9113078]
[1752825577900,1.36062048,119440.0,119430.0,0.9143078]
[1752825578091,1.37784782,119440.0,119430.0,0.9143078]
[1752825578288,1.36443782,119440.0,119430.0,1.0575678]
[1752825578493,2.45045192,119440.0,119430.0,0.004]
[1752825578694,1.84009192,119440.0,119430.0,0.004]
[1752825578988,2.45021192,119440.0,119430.0,0.004]
[1752825579192,2.00665979,119440.0,119430.0,0.004]
[1752825579398,2.45009192,119440.0,119430.0,0.004]
[1752825579898,1.39665979,119440.0,119430.0,0.03967]
[1752825580102,1.39665979,119440.0,119430.0,0.207008]
[1752825580103,1.84009192,119440.0,119430.0,0.207008]
[1752825580293,2.45229192,119440.0,119430.0,0.004]
[1752825581288,0.426008,119430.0,119420.0,0.01024818]
[1752825581499,1.23024013,119430.0,119420.0,0.01024818]
[1752825581698,1.967606,119430.0,119420.0,0.00815818]
[1752825581992,1.9849484,119430.0,119420.0,0.00815818]
[1752825582594,1.967886,119430.0,119420.0,0.00815818]
[1752825583099,2.11494475,119430.0,119420.0,0.00815818]
[1752825583300,2.18066968,119430.0,119420.0,0.00915818]
[1752825583694,2.18066968,119430.0,119420.0,0.01015818]
[1752825583998,2.18912124,119430.0,119420.0,0.01015818]
[1752825584196,2.18912124,119430.0,119410.0,1e-08]
[1752825584197,2.52449524,119430.0,119410.0,1e-08]
[1752825584400,1.23025463,119420.0,119410.0,1e-08]
[1752825584702,1.52178665,119420.0,119410.0,1e-08]
[1752825584890,2.0048479,119420.0,119410.0,0.16736651]
[1752825585091,1.55200577,119420.0,119410.0,0.4429565]
[1752825585399,1.55200577,119420.0,119410.0,0.4439565]
[1752825585400,0.92188577,119420.0,119410.0,0.4439565]
[1752825585600,0.93851638,119420.0,119410.0,0.4439565]
[1752825585800,1.38194851,119420.0,119410.0,0.4439565]
[1752825586099,1.3653179,119420.0,119410.0,0.4439565]
[1752825586493,0.92188577,119420.0,119410.0,0.4439565]
[1752825587095,0.75453327,119420.0,119410.0,1.0739165]
[1752825587497,0.50527327,119420.0,119410.0,1.51634863]
[1752825587701,0.37958501,119420.0,119410.0,1.0729165]
[1752825588093,0.3608,119420.0,119410.0,1.0729165]
[1752825588398,0.50452,119420.0,119410.0,1.0729165]
[1752825588597,0.3608,119420.0,119410.0,1.0729165]
[1752825588798,0.3608,119420.0,119410.0,1.51634863]
[1752825589201,0.3608,119420.0,119410.0,1.0729165]
[1752825589501,0.3608,119420.0,119410.0,1.68382863]
[1752825589699,0.3608,119420.0,119410.0,1.2403965]
[1752825589900,0.3608,119420.0,119410.0,1.68382863]
[1752825590203,0.3608,119420.0,119410.0,1.2403965]
[1752825590397,0.42652493,119430.0,119410.0,1.07303]
[1752825590594,0.42652493,119430.0,119420.0,0.4464825]
[1752825590993,0.42652493,119430.0,119420.0,0.88991463]
[1752825591198,0.06572493,119430.0,119420.0,0.4464825]
[1752825591395,0.3608,119430.0,119420.0,0.88991463]
[1752825591595,0.54347,119450.0,119440.0,0.02272]
[1752825591801,0.5281105,119450.0,119440.0,1.0802945]
[1752825591996,0.5281105,119450.0,119440.0,0.88988663]
[1752825592301,0.7427105,119450.0,119440.0,0.4464545]
[1752825592599,0.8083505,119450.0,119440.0,0.4464545]
[1752825592799,0.8083505,119450.0,119440.0,1.1063345]
[1752825593099,0.64104,119450.0,119440.0,1.1063345]
[1752825593301,0.3608,119450.0,119440.0,1.54976663]
[1752825593900,0.41031,119460.0,119450.0,0.4464405]
[1752825594101,0.3608,119460.0,119450.0,0.88987263]
[1752825594297,0.47024,119460.0,119450.0,0.27913]
[1752825594496,0.8083366,119460.0,119450.0,0.25641]
[1752825594805,0.8083366,119460.0,119450.0,1.0363906]
[1752825595005,0.8083366,119460.0,119450.0,1.1068406]
[1752825595206,0.64304,119460.0,119450.0,1.1068406]
[1752825596498,0.8103366,119460.0,119450.0,0.4464406]
[1752825596702,0.8103356,119460.0,119450.0,0.4464406]
[1752825596897,0.8103356,119460.0,119450.0,1.1068806]
[1752825597102,0.64304,119460.0,119450.0,0.4464406]
[1752825597300,0.64304,119460.0,119450.0,0.4237196]
[1752825598005,0.64304,119460.0,119450.0,0.4464396]
[1752825599506,0.8103365,119460.0,119450.0,0.4464396]
[1752825599802,0.4232105,119450.0,119440.0,0.4617444]
[1752825600103,0.64104,119450.0,119440.0,1.1506456]
[1752825600300,0.64104,119450.0,119440.0,1.1485556]
[1752825600808,0.77104,119450.0,119440.0,1.1485556]
[1752825601205,0.77104,119450.0,119440.0,1.1494756]
[1752825601402,0.64104,119450.0,119440.0,0.4882756]
[1752825601709,0.3608,119450.0,119440.0,0.4882756]
[1752825601904,0.3608,119450.0,119440.0,1.1496356]
[1752825602506,0.42218,119450.0,119440.0,1.1496356]
[1752825602809,0.51913,119450.0,119440.0,0.94049]
[1752825603602,0.51913,119450.0,119440.0,0.97047634]
[1752825603910,0.51913,119450.0,119440.0,0.94049]
[1752825604111,0.51913,119450.0,119440.0,1.13780044]
[1752825604312,0.42218,119450.0,119440.0,1.13780044]
[1752825604709,0.37267,119450.0,119440.0,1.13780044]
[1752825604912,0.37267,119450.0,119440.0,1.18277995]
[1752825605213,0.37267,119450.0,119440.0,1.15279361]
[1752825605413,0.42218,119460.0,119450.0,0.4464401]
[1752825605614,0.51913,119480.0,119470.0,0.27913]
[1752825605808,0.51913,119480.0,119470.0,1.1054121]
[1752825606313,0.7183281,119480.0,119470.0,1.1054121]
[1752825606510,0.7839681,119480.0,119470.0,1.1054121]
[1752825607010,0.6167,119480.0,119470.0,1.1054121]
[1752825607314,0.7839681,119480.0,119470.0,1.1054121]
[1752825607615,0.7869681,119480.0,119470.0,0.1672821]
[1752825607815,0.8287873,119480.0,119470.0,0.1672825]
[1752825608019,1.0005814,119480.0,119470.0,0.8250025]
[1752825609014,0.9169422,119480.0,119470.0,0.85936791]
[1752825609216,0.7496741,119480.0,119470.0,0.20164791]
[1752825609412,0.7496741,119480.0,119470.0,0.95701791]
[1752825609607,0.7496741,119480.0,119470.0,0.85844791]
[1752825609816,0.7496741,119480.0,119470.0,0.20164791]
[1752825610017,0.9169427,119480.0,119470.0,1.05479791]
[1752825610217,0.7496741,119480.0,119470.0,1.10252791]
[1752825610417,0.7496741,119480.0,119470.0,1.12524791]
[1752825610616,0.7496741,119480.0,119470.0,1.1027325]
[1752825611311,0.7740141,119480.0,119470.0,1.1027325]
[1752825611510,0.7740141,119480.0,119470.0,1.1048225]
[1752825612316,0.7083741,119480.0,119470.0,1.1048225]
[1752825612516,0.007,119480.0,119470.0,1.1048225]
[1752825613119,0.007,119480.0,119470.0,0.4485025]
[1752825613413,0.007,119480.0,119470.0,1.1028625]
[1752825613617,0.007,119480.0,119470.0,1.4636625]
[1752825614010,0.007,119480.0,119470.0,1.9068463]
[1752825614817,0.3608,119490.0,119480.0,0.2331185]
[1752825615023,0.28024,119500.0,119490.0,0.4463845]
[1752825615216,0.28024,119500.0,119490.0,1.5429683]
[1752825615416,0.40643164,119500.0,119490.0,1.5429683]
[1752825615617,0.40643164,119500.0,119490.0,1.0997845]
[1752825615817,0.76723164,119500.0,119490.0,1.5429683]
[1752825616919,0.40643164,119500.0,119490.0,1.5429683]
[1752825617115,0.76723164,119500.0,119490.0,1.5429683]
[1752825617418,0.74289164,119500.0,119490.0,1.5429683]
[1752825617913,0.38209164,119500.0,119490.0,1.5429683]
[1752825618120,0.74689164,119500.0,119490.0,1.5429683]
[1752825618420,0.38609164,119500.0,119490.0,1.0997845]
[1752825618715,0.49099164,119500.0,119490.0,1.5429683]
[1752825618918,0.13019164,119500.0,119490.0,0.8895683]
[1752825619119,0.13019164,119500.0,119490.0,1.5401283]
[1752825619819,0.49099164,119500.0,119490.0,1.5401283]
[1752825620022,0.70712254,119500.0,119490.0,1.5397283]
[1752825620209,0.17908164,119500.0,119490.0,1.5397283]
[1752825620411,0.04889,119510.0,119500.0,0.1254244]
[1752825620613,0.09352,119510.0,119500.0,1.1336491]
[1752825620815,0.11808,119520.0,119510.0,0.2351869]
[1752825621011,0.4444033,119530.0,119520.0,0.1672129]
[1752825621012,0.3608,119530.0,119520.0,0.1672129]
[1752825621215,0.6583389,119530.0,119520.0,0.2351729]
[1752825621524,0.87384977,119530.0,119520.0,0.8473329]
[1752825621711,0.87384977,119530.0,119520.0,0.8470529]
[1752825622220,0.87484977,119530.0,119520.0,0.8470529]
[1752825622722,0.92373977,119530.0,119520.0,0.8840529]
[1752825622922,0.92373977,119530.0,119520.0,0.8470529]
[1752825624219,0.75654087,119530.0,119520.0,0.8470529]
[1752825624419,0.92373887,119530.0,119520.0,0.8464129]
[1752825625716,0.92373887,119530.0,119520.0,0.8454929]
[1752825626020,0.75654087,119530.0,119520.0,0.8454929]
[1752825626222,0.92373987,119530.0,119520.0,0.8445329]
[1752825626417,0.1672269,119510.0,119500.0,0.4753782]
[1752825626628,0.4371509,119500.0,119490.0,0.2839181]
[1752825626822,0.4371509,119500.0,119490.0,0.9298781]
[1752825627131,0.56310273,119500.0,119490.0,0.9297181]
[1752825627325,0.39586183,119500.0,119490.0,0.9297181]
[1752825627526,0.39586183,119500.0,119490.0,0.9667181]
[1752825627824,0.39586183,119500.0,119490.0,0.9662381]
[1752825628026,0.56310273,119500.0,119490.0,0.9662381]
[1752825628217,0.56310273,119500.0,119490.0,0.97455198]
[1752825628422,0.39586183,119500.0,119490.0,0.97455198]
[1752825628622,0.39586183,119500.0,119490.0,0.97755198]
[1752825628825,0.39586183,119500.0,119490.0,1.4124219]
[1752825629123,0.30518183,119500.0,119490.0,1.4124219]
[1752825629329,0.30518183,119500.0,119490.0,1.4154219]
[1752825629530,0.21947183,119500.0,119490.0,1.4154219]
[1752825629730,0.12595183,119500.0,119490.0,1.7762219]
[1752825630026,0.12595183,119500.0,119490.0,0.9722381]
[1752825630221,0.46016273,119500.0,119490.0,0.7701019]
[1752825630425,0.56310273,119500.0,119490.0,1.4141419]
[1752825630627,0.56310273,119500.0,119490.0,0.2899181]
[1752825631126,0.39586183,119500.0,119490.0,0.2899181]
[1752825631329,0.39586183,119500.0,119490.0,0.9334381]
[1752825631927,0.39586183,119500.0,119490.0,0.2899181]
[1752825632123,0.39586183,119500.0,119490.0,0.3269181]
[1752825632325,0.39586183,119500.0,119490.0,0.9697581]
[1752825633025,0.39586183,119500.0,119490.0,1.4129419]
[1752825633527,0.39586183,119500.0,119490.0,1.4124219]
[1752825634130,0.30518183,119500.0,119490.0,1.4124219]
[1752825634522,0.21947183,119500.0,119490.0,1.7732219]
[1752825634729,0.12595183,119500.0,119490.0,1.7732219]
[1752825634930,0.12595183,119500.0,119490.0,1.4124219]
[1752825635130,0.21947183,119500.0,119490.0,1.4124219]
[1752825635330,0.12595183,119500.0,119490.0,1.7732219]
[1752825635529,0.12595183,119500.0,119490.0,1.4124219]
[1752825635836,0.12595183,119500.0,119490.0,1.7732219]
[1752825636031,0.12595183,119500.0,119490.0,1.1309019]
[1752825636233,0.19194493,119500.0,119490.0,1.7714619]
[1752825636835,0.07299483,119500.0,119490.0,1.7714619]
[1752825637034,0.03682,119520.0,119510.0,0.3012069]
[1752825637234,0.37306,119530.0,119520.0,0.2674229]
[1752825637438,0.37306,119530.0,119520.0,1.4206367]
[1752825637638,0.49795003,119530.0,119520.0,1.4206367]
[1752825637938,0.55744003,119530.0,119520.0,1.4206367]
[1752825638639,0.55744003,119530.0,119520.0,0.3170929]
[1752825638938,0.65096003,119530.0,119520.0,1.4220867]
[1752825639138,0.59147003,119530.0,119520.0,1.4220867]
[1752825639336,0.59147003,119530.0,119520.0,0.9789029]
[1752825639539,0.59147003,119530.0,119520.0,1.4220867]
[1752825639939,0.66492003,119530.0,119520.0,0.7828867]
[1752825640145,0.59147003,119530.0,119520.0,1.4214867]
[1752825640335,0.23067003,119530.0,119520.0,1.4214867]
[1752825640538,0.16184143,119530.0,119520.0,1.7822867]
[1752825640742,3e-08,119530.0,119520.0,1.7822867]
[1752825640930,3e-08,119530.0,119520.0,1.7818867]
[1752825641130,3e-08,119530.0,119520.0,1.7817667]
[1752825641331,0.09352003,119530.0,119520.0,1.4209667]
[1752825641641,0.4468,119540.0,119530.0,0.1981582]
[1752825641833,0.4468,119540.0,119530.0,0.852982]
[1752825642036,0.54479937,119540.0,119530.0,0.876972]
[1752825642234,0.12676027,119540.0,119530.0,0.876972]
[1752825642543,7e-08,119540.0,119530.0,0.876972]
[1752825643332,0.32372869,119550.0,119540.0,0.714318]
[1752825643537,0.46374,119560.0,119550.0,0.2277302]
[1752825643733,0.19646,119560.0,119550.0,0.876944]
[1752825643933,0.25614252,119560.0,119550.0,0.876944]
[1752825644134,0.08795902,119560.0,119550.0,0.876944]
[1752825644334,2e-08,119560.0,119550.0,0.876944]
[1752825644541,0.46374,119580.0,119570.0,0.2950822]
[1752825644842,0.58954099,119580.0,119570.0,1.0700922]
[1752825645944,0.63063099,119580.0,119570.0,1.0700922]
[1752825646146,0.75471099,119580.0,119570.0,1.0700922]
[1752825646739,0.75471099,119580.0,119570.0,0.4337322]
[1752825647045,0.75471099,119580.0,119570.0,1.0698122]
[1752825647738,0.75871099,119580.0,119570.0,1.0698122]
[1752825648341,0.75871099,119580.0,119570.0,1.0719022]
[1752825649245,0.75871099,119580.0,119570.0,1.0723022]
[1752825649744,0.75871099,119580.0,119570.0,0.4358222]
[1752825649944,0.75871099,119580.0,119570.0,1.0724222]
[1752825650341,0.75871099,119580.0,119570.0,1.0721022]
[1752825650546,0.75871099,119580.0,119570.0,0.4358222]
[1752825650744,0.71762099,119580.0,119570.0,1.0720222]
[1752825651445,0.69306099,119580.0,119570.0,1.0720222]
[1752825651747,0.69306099,119580.0,119570.0,0.4358222]
[1752825651947,0.69306099,119580.0,119570.0,1.0712222]
[1752825652145,0.69306099,119580.0,119570.0,0.4358222]
[1752825652349,0.69306099,119580.0,119570.0,1.0711422]
[1752825652652,0.69306099,119580.0,119570.0,0.4358222]
[1752825653244,1.20048479,119580.0,119570.0,0.1692322]
[1752825653450,1.3677408,119580.0,119570.0,0.8038722]
[1752825654450,0.924557,119580.0,119570.0,0.8492722]
[1752825654650,0.75730099,119580.0,119570.0,0.8838822]
[1752825654850,0.75730099,119580.0,119570.0,0.3569822]
[1752825655645,0.69306099,119580.0,119570.0,0.4595122]
[1752825658454,0.69306099,119580.0,119570.0,0.1692322]
[1752825658455,1.20048479,119580.0,119570.0,0.1692322]
[1752825659757,1.38970099,119580.0,119570.0,0.1692322]
[1752825659958,1.83288479,119580.0,119570.0,0.2146322]
[1752825660253,2.00001289,119580.0,119570.0,0.1692322]
[1752825661552,2.4172689,119580.0,119570.0,0.1428722]
[1752825661762,0.3441121,119570.0,119560.0,0.2925172]
[1752825661956,1.1480959,119570.0,119560.0,0.2925172]
[1752825662155,1.27353345,119570.0,119560.0,0.2925172]
[1752825662755,1.27753345,119570.0,119560.0,0.2925172]
[1752825662955,1.90881345,119570.0,119560.0,0.2925172]
[1752825663155,1.91181345,119570.0,119560.0,0.2925172]
[1752825663458,1.28053345,119570.0,119560.0,0.2925172]
[1752825663659,1.11339135,119570.0,119560.0,0.3379172]
[1752825663850,0.30940755,119570.0,119560.0,0.5827972]
[1752825664051,0.67020755,119570.0,119560.0,0.5827972]
[1752825664251,0.56180755,119570.0,119560.0,0.5827972]
[1752825664560,0.56170755,119570.0,119560.0,1.2135172]
[1752825664760,0.67010755,119570.0,119560.0,1.2135172]
[1752825665658,1.11329135,119570.0,119560.0,0.5827972]
[1752825666452,0.67010755,119570.0,119560.0,1.2153572]
[1752825668652,0.67010755,119570.0,119560.0,0.5827972]
[1752825669058,0.68694487,119570.0,119560.0,1.2144372]
[1752825669955,0.68694487,119570.0,119560.0,0.5827972]
[1752825670159,0.68694487,119570.0,119560.0,1.2144372]
[1752825671057,0.68694487,119570.0,119560.0,0.5827972]
[1752825671457,1.13012867,119570.0,119560.0,0.5827972]
[1752825671761,0.68694487,119570.0,119560.0,0.5827972]
[1752825672461,0.3441261,119560.0,119550.0,0.3197386]
[1752825672659,1.18345501,119560.0,119550.0,0.069]
[1752825672860,1.85085981,119560.0,119550.0,0.1154801]
[1752825673059,0.1671841,119540.0,119530.0,0.4039148]
[1752825673254,1.99703588,119540.0,119530.0,0.2925735]
[1752825673455,1.95529346,119540.0,119530.0,0.2925735]
[1752825673665,1.95529346,119540.0,119530.0,0.4457135]
[1752825673863,1.96382254,119540.0,119530.0,0.4457135]
[1752825674260,1.33410254,119540.0,119530.0,0.4803235]
[1752825674464,0.94976861,119540.0,119530.0,0.5828535]
[1752825674665,1.57964861,119540.0,119530.0,0.5828535]
[1752825674863,0.94976861,119540.0,119530.0,0.5828535]
[1752825675063,0.88238966,119540.0,119530.0,1.0260373]
[1752825675261,0.1047888,119540.0,119530.0,1.3868373]
[1752825675567,0.0765674,119540.0,119530.0,1.0260373]
[1752825675767,0.0765674,119540.0,119530.0,0.5828535]
[1752825676360,0.0765674,119540.0,119530.0,1.0260373]
[1752825676559,0.0775674,119540.0,119530.0,1.0260373]
[1752825676757,0.4383674,119540.0,119530.0,0.5828535]
[1752825677162,0.4062929,119540.0,119530.0,0.5828535]
[1752825677468,0.373905,119540.0,119530.0,1.0260373]
[1752825677676,0.3608,119550.0,119540.0,0.4574792]
[1752825677866,0.3608,119550.0,119540.0,1.0878792]
[1752825678067,0.48696076,119550.0,119540.0,1.0878792]
[1752825678967,0.48696076,119550.0,119540.0,1.0874392]
[1752825679269,0.49230076,119550.0,119540.0,1.0874392]
[1752825679463,0.49864076,119550.0,119540.0,0.4574792]
[1752825680369,0.49530076,119550.0,119540.0,0.4574792]
[1752825681570,0.49730076,119550.0,119540.0,0.4574792]
[1752825682673,0.50064076,119550.0,119540.0,0.4574792]
[1752825684971,1.13036076,119550.0,119540.0,0.4574792]
[1752825685569,0.50064076,119550.0,119540.0,0.4574792]
[1752825685774,1.12972076,119550.0,119540.0,0.4574792]
[1752825686175,1.12638076,119550.0,119540.0,0.4574792]
[1752825687376,1.14409221,119550.0,119540.0,0.4574792]
[1752825687676,1.20366736,119550.0,119540.0,0.4574792]
[1752825688267,1.14743221,119550.0,119540.0,0.4574792]
[1752825690175,1.92510611,119550.0,119540.0,0.1671992]
[1752825690575,1.99913252,119550.0,119540.0,0.1671992]
[1752825690978,1.98461416,119550.0,119540.0,0.1671992]
[1752825691376,1.98461416,119550.0,119540.0,0.1638592]
[1752825691577,1.92510611,119550.0,119540.0,0.1638592]
[1752825692184,1.98460299,119550.0,119540.0,0.1638592]
[1752825693975,1.75464001,119550.0,119540.0,0.3227492]
[1752825694175,0.57449452,119550.0,119540.0,0.4618692]
[1752825694376,1.20033452,119550.0,119540.0,0.4618692]
[1752825694781,0.51501221,119550.0,119540.0,0.4618692]
[1752825695183,1.14073221,119550.0,119540.0,0.4618692]
[1752825695683,1.30791831,119550.0,119540.0,0.3227492]
[1752825695883,1.75110211,119550.0,119540.0,0.3227492]
[1752825696085,1.91840611,119550.0,119540.0,0.1638592]
[1752825696286,1.97788842,119550.0,119540.0,0.1638592]
[1752825696485,1.91840611,119550.0,119540.0,0.1638592]